fUSD/lending_fUSD_20260608
["ID","MTS","AMOUNT","RATE_DAILY","PERIOD"]
[424460618,1780927850000,-2723.09,0.00028797,7]
[424460607,1780927850000,-500.0,0.00028767,2]
[424460599,1780927850000,-500.0,0.00028767,2]
[424460621,1780927850000,-2743.67,0.00028797,7]
[424460622,1780927850000,-2313.02,0.00028797,7]
[424460609,1780927850000,-555.814082,0.00028767,2]
[424460620,1780927850000,-2331.52,0.00028797,7]
[424460619,1780927850000,-9470.35,0.00028797,7]
[424460613,1780927850000,-177.335,0.00028767,30]
[424460615,1780927850000,-150.0,0.00028767,2]
[424460616,1780927850000,-992.98,0.00028788,30]
[424460617,1780927850000,-981.7,0.00028788,30]
[424460612,1780927850000,-217.51437528,0.00028767,2]
[424460610,1780927850000,-151.0,0.00028767,7]
[424460611,1780927850000,-500.0,0.00028767,2]
[424460614,1780927850000,-172.0,0.00028767,14]
[424460689,1780927851000,-194.000028,0.00028971,2]
[424460698,1780927851000,-200.0,0.00029,2]
[424460693,1780927851000,-5800.0,0.00028992,2]
[424460696,1780927851000,-200.0,0.00029,2]
[424460700,1780927851000,-200.0,0.00029,2]
[424460683,1780927851000,-2313.02,0.00028964,2]
[424460690,1780927851000,-992.98,0.00028979,30]
[424460687,1780927851000,-187.67701125,0.00028971,2]
[424460685,1780927851000,-2000.0,0.00028966,7]
[424460686,1780927851000,-400.0,0.0002897,2]
[424460691,1780927851000,-981.7,0.00028979,30]
[424460699,1780927851000,-200.0,0.00029,2]
[424460694,1780927851000,-200.0,0.00029,2]
[424460704,1780927851000,-200.0,0.00029,2]
[424460692,1780927851000,-5800.0,0.00028983,2]
[424460697,1780927851000,-200.0,0.00029,2]
[424460709,1780927851000,-200.0,0.00029,2]
[424460710,1780927851000,-894.25463269,0.00029,2]
[424460712,1780927851000,-200.0,0.00029,2]
[424460711,1780927851000,-220.84,0.00029,2]
[424460702,1780927851000,-200.0,0.00029,2]
[424460703,1780927851000,-200.0,0.00029,2]
[424460701,1780927851000,-200.0,0.00029,2]
[424460705,1780927851000,-200.0,0.00029,2]
[424460706,1780927851000,-800.77456,0.00029,2]
[424460708,1780927851000,-868.14535544,0.00029,2]
[424460684,1780927851000,-9521.2,0.00028964,2]
[424460695,1780927851000,-200.0,0.00029,2]
[424460681,1780927851000,-2331.52,0.00028964,2]
[424460664,1780927851000,-176.0625856,0.00028913,2]
[424460677,1780927851000,-1954.926,0.00028964,21]
[424460707,1780927851000,-215.04,0.00029,2]
[424460655,1780927851000,-981.7,0.00028883,30]
[424460653,1780927851000,-151.53027978,0.00028877,30]
[424460654,1780927851000,-992.98,0.00028883,30]
[424460660,1780927851000,-505.11745784,0.00028911,2]
[424460661,1780927851000,-470.90404958,0.00028911,2]
[424460658,1780927851000,-400.0,0.000289,10]
[424460656,1780927851000,-160.0,0.00028895,3]
[424460659,1780927851000,-240.0,0.000289,2]
[424460657,1780927851000,-201256.74,0.000289,2]
[424460662,1780927851000,-328.97113735,0.00028911,2]
[424460663,1780927851000,-398.24508795,0.00028911,2]
[424460665,1780927851000,-196.608002,0.00028913,2]
[424460669,1780927851000,-992.98,0.00028915,2]
[424460670,1780927851000,-981.7,0.00028915,2]
[424460671,1780927851000,-1000.0,0.00028947,7]
[424460667,1780927851000,-170.81237856,0.00028913,2]
[424460668,1780927851000,-327.73990948,0.00028913,2]
[424460674,1780927851000,-515.15,0.00028957,2]
[424460666,1780927851000,-210.47956049,0.00028913,2]
[424460675,1780927851000,-1199.24,0.00028963,2]
[424460676,1780927851000,-750.0,0.00028964,2]
[424460672,1780927851000,-992.98,0.00028947,7]
[424460673,1780927851000,-981.7,0.00028947,7]
[424460678,1780927851000,-190.932,0.00028964,21]
[424460688,1780927851000,-165.83782373,0.00028971,5]
[424460680,1780927851000,-9470.35,0.00028964,2]
[424460679,1780927851000,-2723.09,0.00028964,2]
[424460713,1780927851000,-221.00653772,0.00029,2]
[424460682,1780927851000,-2743.67,0.00028964,2]
[424460721,1780927851000,-158.0,0.00029,4]
[424460751,1780927851000,-332.31887639,0.00029044,2]
[424460747,1780927851000,-981.7,0.0002901,2]
[424460745,1780927851000,-800.72,0.00029,2]
[424460749,1780927851000,-992.98,0.00029042,7]
[424460748,1780927851000,-151.53027978,0.00029041,30]
[424460753,1780927851000,-181.7678467,0.00029067,30]
[424460764,1780927851000,-9470.35,0.00029132,30]
[424460763,1780927851000,-2723.09,0.00029132,30]
[424460752,1780927851000,-350.0,0.00029064,5]
[424460758,1780927851000,-992.98,0.00029105,2]
[424460756,1780927851000,-20480.23085432,0.000291,2]
[424460755,1780927851000,-981.7,0.00029074,30]
[424460754,1780927851000,-992.98,0.00029074,30]
[424460757,1780927851000,-500.0,0.00029103,2]
[424460760,1780927851000,-275.0,0.00029124,2]
[424460762,1780927851000,-174.98956048,0.0002913,20]
[424460759,1780927851000,-981.7,0.00029105,2]
[424460767,1780927851000,-2313.02,0.00029132,30]
[424460765,1780927851000,-2331.52,0.00029132,30]
[424460766,1780927851000,-2743.67,0.00029132,30]
[424460769,1780927851000,-1413.85318,0.00029132,7]
[424460768,1780927851000,-9521.2,0.00029132,30]
[424460770,1780927851000,-1413.85318,0.00029132,7]
[424460771,1780927851000,-1413.85318,0.00029132,7]
[424460772,1780927851000,-151.0,0.00029132,7]
[424460774,1780927851000,-992.98,0.00029137,7]
[424460715,1780927851000,-981.97290396,0.00029,2]
[424460746,1780927851000,-992.98,0.0002901,2]
[424460750,1780927851000,-981.7,0.00029042,7]
[424460761,1780927851000,-517.18922779,0.0002913,20]
[424460742,1780927851000,-500.0,0.00029,2]
[424460716,1780927851000,-500.0,0.00029,2]
[424460741,1780927851000,-215.86427702,0.00029,30]
[424460723,1780927851000,-158.0,0.00029,4]
[424460724,1780927851000,-158.0,0.00029,4]
[424460725,1780927851000,-158.0,0.00029,4]
[424460719,1780927851000,-167.0,0.00029,4]
[424460714,1780927851000,-5800.0,0.00029,2]
[424460720,1780927851000,-158.0,0.00029,4]
[424460718,1780927851000,-10000.0,0.00029,2]
[424460717,1780927851000,-500.0,0.00029,2]
[424460727,1780927851000,-158.0,0.00029,4]
[424460737,1780927851000,-500.0,0.00029,2]
[424460726,1780927851000,-158.0,0.00029,4]
[424460738,1780927851000,-500.0,0.00029,2]
[424460722,1780927851000,-158.0,0.00029,4]
[424460735,1780927851000,-157.0,0.00029,4]
[424460728,1780927851000,-158.0,0.00029,4]
[424460730,1780927851000,-161.0,0.00029,4]
[424460733,1780927851000,-157.0,0.00029,4]
[424460734,1780927851000,-157.0,0.00029,4]
[424460732,1780927851000,-157.0,0.00029,4]
[424460736,1780927851000,-157.0,0.00029,4]
[424460731,1780927851000,-157.0,0.00029,4]
[424460743,1780927851000,-527.27481035,0.00029,2]
[424460773,1780927851000,-1413.85318,0.00029132,7]
[424460739,1780927851000,-500.0,0.00029,2]
[424460740,1780927851000,-1127.0,0.00029,2]
[424460729,1780927851000,-158.0,0.00029,4]
[424460744,1780927851000,-10000.0,0.00029,2]
[424460797,1780927852000,-540.0,0.0002929,30]
[424460793,1780927852000,-1704.0,0.00029288,30]
[424460806,1780927852000,-9521.2,0.00029299,7]
[424460795,1780927852000,-630.0,0.0002929,30]
[424460794,1780927852000,-582.0,0.00029288,30]
[424460800,1780927852000,-9509.57,0.00029299,7]
[424460803,1780927852000,-2331.52,0.00029299,7]
[424460799,1780927852000,-151.0,0.00029296,7]
[424460801,1780927852000,-2723.09,0.00029299,7]
[424460802,1780927852000,-9470.35,0.00029299,7]
[424460804,1780927852000,-2743.67,0.00029299,7]
[424460805,1780927852000,-2313.02,0.00029299,7]
[424460792,1780927852000,-165.0,0.00029288,30]
[424460798,1780927852000,-861.0,0.0002929,30]
[424460789,1780927852000,-477.0,0.00029236,30]
[424460777,1780927852000,-992.98,0.00029169,30]
[424460796,1780927852000,-2673.0,0.0002929,30]
[424460811,1780927852000,-1379.96,0.00029315,2]
[424460776,1780927852000,-1255.75,0.00029159,2]
[424460775,1780927852000,-981.7,0.00029137,7]
[424460778,1780927852000,-981.7,0.00029169,30]
[424460779,1780927852000,-151.0,0.00029173,4]
[424460784,1780927852000,-1238.0,0.00029203,15]
[424460781,1780927852000,-992.98,0.00029201,2]
[424460782,1780927852000,-981.7,0.00029201,2]
[424460780,1780927852000,-700.0,0.00029178,60]
[424460783,1780927852000,-3000.0,0.00029203,15]
[424460785,1780927852000,-2297.0,0.00029205,15]
[424460786,1780927852000,-273.0,0.00029231,30]
[424460790,1780927852000,-751.0,0.00029236,30]
[424460788,1780927852000,-981.8,0.00029232,7]
[424460787,1780927852000,-993.02,0.00029232,7]
[424460791,1780927852000,-673.0,0.00029236,30]
[424460807,1780927852000,-10000.0,0.00029305,2]
[424460823,1780927852000,-200.0,0.00029322,2]
[424460809,1780927852000,-3000.0,0.00029315,2]
[424460827,1780927852000,-200.0,0.00029322,2]
[424460833,1780927852000,-200.0,0.00029322,2]
[424460832,1780927852000,-200.0,0.00029322,2]
[424460834,1780927852000,-200.0,0.00029322,2]
[424460836,1780927852000,-200.0,0.00029322,2]
[424460839,1780927852000,-200.0,0.00029322,2]
[424460830,1780927852000,-200.0,0.00029322,2]
[424460838,1780927852000,-200.0,0.00029322,2]
[424460840,1780927852000,-200.0,0.00029322,2]
[424460842,1780927852000,-200.0,0.00029322,2]
[424460843,1780927852000,-200.0,0.00029322,2]
[424460841,1780927852000,-200.0,0.00029322,2]
[424460844,1780927852000,-200.0,0.00029322,2]
[424460808,1780927852000,-3000.0,0.00029315,2]
[424460837,1780927852000,-200.0,0.00029322,2]
[424460829,1780927852000,-200.0,0.00029322,2]
[424460835,1780927852000,-200.0,0.00029322,2]
[424460828,1780927852000,-200.0,0.00029322,2]
[424460810,1780927852000,-3000.0,0.00029315,2]
[424460831,1780927852000,-200.0,0.00029322,2]
[424460812,1780927852000,-3000.0,0.00029315,2]
[424460814,1780927852000,-150.0,0.00029315,7]
[424460815,1780927852000,-200.0,0.00029322,2]
[424460817,1780927852000,-200.0,0.00029322,2]
[424460813,1780927852000,-867.75,0.00029315,2]
[424460818,1780927852000,-200.0,0.00029322,2]
[424460816,1780927852000,-200.0,0.00029322,2]
[424460821,1780927852000,-200.0,0.00029322,2]
[424460822,1780927852000,-200.0,0.00029322,2]
[424460825,1780927852000,-200.0,0.00029322,2]
[424460820,1780927852000,-200.0,0.00029322,2]
[424460824,1780927852000,-200.0,0.00029322,2]
[424460826,1780927852000,-200.0,0.00029322,2]
[424460819,1780927852000,-200.0,0.00029322,2]
[424460864,1780927853000,-200.0,0.00029405,2]
[424460876,1780927853000,-200.0,0.00029405,2]
[424460865,1780927853000,-200.0,0.00029405,2]
[424460867,1780927853000,-200.0,0.00029405,2]
[424460868,1780927853000,-200.0,0.00029405,2]
[424460870,1780927853000,-200.0,0.00029405,2]
[424460873,1780927853000,-200.0,0.00029405,2]
[424460881,1780927853000,-2214.94788622,0.00029405,2]
[424460875,1780927853000,-200.0,0.00029405,2]
[424460874,1780927853000,-200.0,0.00029405,2]
[424460872,1780927853000,-200.0,0.00029405,2]
[424460877,1780927853000,-200.0,0.00029405,2]
[424460878,1780927853000,-200.0,0.00029405,2]
[424460882,1780927853000,-1948.32316134,0.00029405,2]
[424460866,1780927853000,-200.0,0.00029405,2]
[424460869,1780927853000,-200.0,0.00029405,2]
[424460863,1780927853000,-200.0,0.00029405,2]
[424460845,1780927853000,-200.0,0.00029322,2]
[424460861,1780927853000,-500.0,0.00029405,2]
[424460879,1780927853000,-200.0,0.00029405,2]
[424460846,1780927853000,-200.0,0.00029322,2]
[424460847,1780927853000,-200.0,0.00029322,2]
[424460848,1780927853000,-200.0,0.00029322,2]
[424460852,1780927853000,-163.0,0.00029322,2]
[424460849,1780927853000,-200.0,0.00029322,2]
[424460850,1780927853000,-200.0,0.00029322,2]
[424460862,1780927853000,-547.0,0.00029405,2]
[424460851,1780927853000,-200.0,0.00029322,2]
[424460854,1780927853000,-500.0,0.00029322,2]
[424460858,1780927853000,-500.0,0.00029405,2]
[424460857,1780927853000,-151.0,0.00029402,7]
[424460855,1780927853000,-1199.24,0.00029354,2]
[424460860,1780927853000,-500.0,0.00029405,2]
[424460859,1780927853000,-500.0,0.00029405,2]
[424460856,1780927853000,-187.67701125,0.00029372,2]
[424460853,1780927853000,-500.0,0.00029322,2]
[424460884,1780927853000,-750.0,0.00029405,5]
[424460871,1780927853000,-200.0,0.00029405,2]
[424460883,1780927853000,-4722.40181848,0.00029405,2]
[424460907,1780927853000,-602.04,0.00029534,30]
[424460901,1780927853000,-1500.0,0.00029534,15]
[424460906,1780927853000,-150.0,0.00029534,2]
[424460903,1780927853000,-1500.0,0.00029534,15]
[424460909,1780927853000,-1199.24,0.0002955,2]
[424460908,1780927853000,-465.45413944,0.0002954,2]
[424460911,1780927853000,-500.0,0.00029567,14]
[424460904,1780927853000,-1500.0,0.00029534,15]
[424460910,1780927853000,-16300.09422304,0.0002955,2]
[424460913,1780927853000,-3714.61240358,0.00029601,2]
[424460914,1780927853000,-350.0,0.00029603,4]
[424460917,1780927853000,-362.4983651,0.00029667,2]
[424460916,1780927853000,-276.68041766,0.00029667,2]
[424460919,1780927853000,-479.20212617,0.00029667,2]
[424460918,1780927853000,-354.8945202,0.00029667,2]
[424460880,1780927853000,-170.0,0.00029405,2]
[424460915,1780927853000,-249.32009048,0.00029667,2]
[424460902,1780927853000,-1500.0,0.00029534,15]
[424460912,1780927853000,-396.0,0.00029576,7]
[424460905,1780927853000,-1500.0,0.00029534,15]
[424460900,1780927853000,-737.75,0.00029534,7]
[424460886,1780927853000,-2181.10590754,0.00029405,2]
[424460890,1780927853000,-552.991,0.00029452,30]
[424460889,1780927853000,-500.0,0.00029452,30]
[424460888,1780927853000,-549.0,0.00029432,2]
[424460887,1780927853000,-11186.0,0.00029432,10]
[424460891,1780927853000,-376.93,0.00029455,2]
[424460920,1780927853000,-375.09923148,0.00029667,2]
[424460885,1780927853000,-260.0,0.00029405,5]
[424460895,1780927853000,-185.08,0.00029472,2]
[424460896,1780927853000,-200.0,0.00029495,2]
[424460897,1780927853000,-20857.75887062,0.00029511,2]
[424460893,1780927853000,-1000.0,0.00029462,7]
[424460894,1780927853000,-573.1,0.00029471,2]
[424460898,1780927853000,-1095.64,0.00029534,7]
[424460892,1780927853000,-1000.0,0.00029459,7]
[424460899,1780927853000,-1049.74,0.00029534,7]
[424460951,1780927854000,-1228.48,0.00029698,2]
[424460954,1780927854000,-178.89386,0.000297,2]
[424460948,1780927854000,-275.0,0.00029672,2]
[424460953,1780927854000,-1571.88,0.000297,7]
[424460952,1780927854000,-237280.7495408,0.000297,2]
[424460949,1780927854000,-151.0,0.0002969,60]
[424460946,1780927854000,-168.28441566,0.00029667,2]
[424460955,1780927854000,-811.803458,0.000297,7]
[424460947,1780927854000,-269.52741957,0.00029667,2]
[424460950,1780927854000,-1735.27,0.00029698,2]
[424460960,1780927854000,-811.803458,0.000297,7]
[424460962,1780927854000,-1825.983978,0.000297,7]
[424460957,1780927854000,-151.0,0.000297,7]
[424460963,1780927854000,-188.809671,0.000297,7]
[424460958,1780927854000,-811.803458,0.000297,7]
[424460966,1780927854000,-1825.983978,0.000297,7]
[424460965,1780927854000,-1825.983978,0.000297,7]
[424460959,1780927854000,-151.0,0.000297,7]
[424460961,1780927854000,-151.0,0.000297,7]
[424460967,1780927854000,-1005.699283,0.000297,7]
[424460945,1780927854000,-228.08395768,0.00029667,2]
[424460956,1780927854000,-811.803458,0.000297,7]
[424460938,1780927854000,-260.77720345,0.00029667,2]
[424460927,1780927854000,-206.52482713,0.00029667,2]
[424460943,1780927854000,-235.17917145,0.00029667,2]
[424460921,1780927854000,-505.93017741,0.00029667,2]
[424460922,1780927854000,-443.60377747,0.00029667,2]
[424460924,1780927854000,-159.925242,0.00029667,2]
[424460923,1780927854000,-516.50196449,0.00029667,2]
[424460969,1780927854000,-1005.699283,0.000297,7]
[424460925,1780927854000,-503.16090061,0.00029667,2]
[424460928,1780927854000,-571.39175624,0.00029667,2]
[424460929,1780927854000,-465.16366786,0.00029667,2]
[424460926,1780927854000,-549.36181413,0.00029667,2]
[424460930,1780927854000,-479.32657961,0.00029667,2]
[424460932,1780927854000,-228.88331065,0.00029667,2]
[424460931,1780927854000,-361.79164385,0.00029667,2]
[424460936,1780927854000,-541.2125938,0.00029667,2]
[424460934,1780927854000,-482.6717427,0.00029667,2]
[424460935,1780927854000,-371.5468664,0.00029667,2]
[424460933,1780927854000,-178.16770869,0.00029667,2]
[424460937,1780927854000,-234.10876242,0.00029667,2]
[424460941,1780927854000,-288.52211554,0.00029667,2]
[424460939,1780927854000,-372.47257897,0.00029667,2]
[424460940,1780927854000,-157.0006608,0.00029667,2]
[424460942,1780927854000,-248.80836166,0.00029667,2]
[424460944,1780927854000,-562.66037919,0.00029667,2]
[424460974,1780927854000,-2998.49,0.00029741,2]
[424460964,1780927854000,-1825.983978,0.000297,7]
[424460972,1780927854000,-151.0,0.000297,7]
[424461001,1780927854000,-352.1251712,0.00029781,2]
[424460999,1780927854000,-208.8938632,0.00029781,2]
[424461000,1780927854000,-225.60361492,0.00029781,2]
[424460998,1780927854000,-151.52021397,0.00029779,2]
[424461003,1780927854000,-284.84725716,0.00029781,2]
[424461002,1780927854000,-228.04656561,0.00029781,2]
[424461008,1780927854000,-341.62475711,0.00029781,2]
[424461010,1780927854000,-160.28277393,0.00029781,2]
[424461006,1780927854000,-420.95912097,0.00029781,2]
[424461004,1780927854000,-260.58263731,0.00029781,2]
[424460996,1780927854000,-243.72420315,0.00029779,2]
[424461007,1780927854000,-164.33629873,0.00029781,2]
[424461011,1780927854000,-231.77079862,0.00029781,2]
[424461012,1780927854000,-491.60986421,0.00029781,2]
[424461013,1780927854000,-350.0,0.00029795,15]
[424461014,1780927854000,-178.89387,0.000298,2]
[424461016,1780927854000,-199.955123,0.00029804,7]
[424461015,1780927854000,-151.0,0.00029801,7]
[424461017,1780927854000,-199.955123,0.00029804,7]
[424461018,1780927854000,-1976.201679,0.00029804,7]
[424460975,1780927854000,-1199.24,0.00029746,2]
[424461019,1780927854000,-199.955123,0.00029804,7]
[424461009,1780927854000,-172.18081392,0.00029781,2]
[424460997,1780927854000,-151.86368776,0.00029779,2]
[424461005,1780927854000,-393.21600401,0.00029781,2]
[424460991,1780927854000,-203.60753074,0.00029779,2]
[424460973,1780927854000,-151.0,0.000297,7]
[424460971,1780927854000,-151.0,0.000297,7]
[424460994,1780927854000,-597.36763193,0.00029779,2]
[424460968,1780927854000,-1005.699283,0.000297,7]
[424460970,1780927854000,-1005.699283,0.000297,7]
[424460978,1780927854000,-500.0,0.00029759,2]
[424460977,1780927854000,-200.0,0.00029759,2]
[424460976,1780927854000,-1000.0,0.00029747,7]
[424460981,1780927854000,-757.67618676,0.00029779,2]
[424460982,1780927854000,-214.11183018,0.00029779,2]
[424460986,1780927854000,-213.0647269,0.00029779,2]
[424460980,1780927854000,-187.67701125,0.00029773,2]
[424460987,1780927854000,-706.35607437,0.00029779,2]
[424460988,1780927854000,-244.02785971,0.00029779,2]
[424460984,1780927854000,-150.45673256,0.00029779,2]
[424460995,1780927854000,-231.67661601,0.00029779,2]
[424460979,1780927854000,-500.44210265,0.00029772,2]
[424460989,1780927854000,-171.28335426,0.00029779,2]
[424460983,1780927854000,-151.00394963,0.00029779,2]
[424460985,1780927854000,-238.74337112,0.00029779,2]
[424460990,1780927854000,-236.81670027,0.00029779,2]
[424460993,1780927854000,-212.81570921,0.00029779,2]
[424460992,1780927854000,-493.45670602,0.00029779,2]
[424461058,1780927855000,-578.003,0.00029863,7]
[424461052,1780927855000,-578.003,0.00029863,7]
[424461057,1780927855000,-578.003,0.00029863,7]
[424461054,1780927855000,-578.003,0.00029863,7]
[424461053,1780927855000,-578.003,0.00029863,7]
[424461055,1780927855000,-578.003,0.00029863,7]
[424461050,1780927855000,-578.003,0.00029863,7]
[424461051,1780927855000,-578.003,0.00029863,7]
[424461061,1780927855000,-578.003,0.00029863,7]
[424461048,1780927855000,-578.003,0.00029863,7]
[424461056,1780927855000,-578.003,0.00029863,7]
[424461060,1780927855000,-578.003,0.00029863,7]
[424461075,1780927855000,-6377.92355317,0.000299,2]
[424461063,1780927855000,-183.66132573,0.00029871,7]
[424461062,1780927855000,-578.00477078,0.00029863,7]
[424461064,1780927855000,-5400.5,0.00029872,2]
[424461065,1780927855000,-1000.0,0.00029872,7]
[424461067,1780927855000,-400.0,0.000299,10]
[424461068,1780927855000,-178.89386,0.000299,2]
[424461066,1780927855000,-6879.94196857,0.000299,30]
[424461069,1780927855000,-6377.92355319,0.000299,2]
[424461076,1780927855000,-6377.92355317,0.000299,2]
[424461079,1780927855000,-6377.92355317,0.000299,2]
[424461077,1780927855000,-6377.92355317,0.000299,2]
[424461049,1780927855000,-578.003,0.00029863,7]
[424461059,1780927855000,-578.003,0.00029863,7]
[424461042,1780927855000,-183.66132573,0.00029838,7]
[424461024,1780927855000,-183.66132573,0.00029804,7]
[424461041,1780927855000,-300.01,0.00029819,14]
[424461071,1780927855000,-6377.92355317,0.000299,2]
[424461021,1780927855000,-199.955123,0.00029804,7]
[424461022,1780927855000,-1976.201679,0.00029804,7]
[424461023,1780927855000,-1976.201679,0.00029804,7]
[424461025,1780927855000,-1000.0,0.00029804,2]
[424461020,1780927855000,-1976.201679,0.00029804,7]
[424461026,1780927855000,-1000.0,0.00029804,2]
[424461030,1780927855000,-1000.0,0.00029804,2]
[424461033,1780927855000,-1000.0,0.00029804,2]
[424461027,1780927855000,-1000.0,0.00029804,2]
[424461031,1780927855000,-1000.0,0.00029804,2]
[424461036,1780927855000,-1000.0,0.00029804,2]
[424461037,1780927855000,-1000.0,0.00029804,2]
[424461035,1780927855000,-1000.0,0.00029804,2]
[424461028,1780927855000,-1000.0,0.00029804,2]
[424461032,1780927855000,-1697.83,0.00029804,2]
[424461034,1780927855000,-1000.0,0.00029804,2]
[424461029,1780927855000,-1000.0,0.00029804,2]
[424461039,1780927855000,-350.0,0.00029819,14]
[424461038,1780927855000,-1796.15,0.00029804,2]
[424461040,1780927855000,-350.0,0.00029819,14]
[424461043,1780927855000,-578.003,0.00029863,7]
[424461047,1780927855000,-578.003,0.00029863,7]
[424461044,1780927855000,-578.003,0.00029863,7]
[424461046,1780927855000,-578.003,0.00029863,7]
[424461045,1780927855000,-578.003,0.00029863,7]
[424461078,1780927855000,-6377.92355317,0.000299,2]
[424461118,1780927855000,-650.0,0.0003,2]
[424461074,1780927855000,-6377.92355317,0.000299,2]
[424461108,1780927855000,-2011.55,0.0003,30]
[424461106,1780927855000,-87877.0,0.0003,2]
[424461109,1780927855000,-19260.49138397,0.0003,7]
[424461113,1780927855000,-1161.13,0.0003,7]
[424461111,1780927855000,-329.48,0.0003,11]
[424461110,1780927855000,-19260.49138397,0.0003,7]
[424461112,1780927855000,-1157.44,0.0003,7]
[424461114,1780927855000,-200.0,0.0003,2]
[424461116,1780927855000,-500.0,0.0003,60]
[424461117,1780927855000,-1041.98,0.0003,30]
[424461120,1780927855000,-151.0,0.0003,7]
[424461119,1780927855000,-151.0,0.0003,7]
[424461127,1780927855000,-200.0,0.0003,2]
[424461123,1780927855000,-185.6716272,0.0003,30]
[424461125,1780927855000,-151.0,0.0003,7]
[424461122,1780927855000,-200.0,0.0003,2]
[424461124,1780927855000,-1012.18627248,0.0003,7]
[424461121,1780927855000,-159.0,0.0003,30]
[424461126,1780927855000,-150.0,0.0003,2]
[424461129,1780927855000,-686.832374,0.0003,7]
[424461130,1780927855000,-16217.70849496,0.0003,2]
[424461128,1780927855000,-200.869884,0.0003,7]
[424461131,1780927855000,-200.869884,0.0003,7]
[424461132,1780927855000,-686.832374,0.0003,7]
[424461070,1780927855000,-6377.92355317,0.000299,2]
[424461107,1780927855000,-35578.22920584,0.0003,5]
[424461115,1780927855000,-369.14576973,0.0003,30]
[424461133,1780927855000,-150.0,0.0003,2]
[424461105,1780927855000,-20266.75151678,0.0003,2]
[424461104,1780927855000,-18503.89017055,0.0003,2]
[424461073,1780927855000,-6377.92355317,0.000299,2]
[424461081,1780927855000,-6377.92355317,0.000299,2]
[424461091,1780927855000,-259.91,0.00029999,3]
[424461080,1780927855000,-6377.92355317,0.000299,2]
[424461085,1780927855000,-400.0,0.0002997,2]
[424461087,1780927855000,-152.0,0.00029995,30]
[424461083,1780927855000,-183.66132573,0.00029938,7]
[424461082,1780927855000,-183.66132573,0.00029905,7]
[424461084,1780927855000,-1199.24,0.00029941,2]
[424461086,1780927855000,-183.66132573,0.00029972,7]
[424461088,1780927855000,-151.0,0.00029997,7]
[424461090,1780927855000,-150.0,0.00029999,2]
[424461072,1780927855000,-6377.92355317,0.000299,2]
[424461092,1780927855000,-700.0,0.0003,60]
[424461089,1780927855000,-151.0,0.00029997,7]
[424461102,1780927855000,-7127.03433794,0.0003,3]
[424461093,1780927855000,-154084.47415917,0.0003,7]
[424461098,1780927855000,-200.0,0.0003,11]
[424461096,1780927855000,-354.0,0.0003,30]
[424461103,1780927855000,-200520.60012117,0.0003,7]
[424461100,1780927855000,-200.0,0.0003,11]
[424461101,1780927855000,-169.8291594,0.0003,2]
[424461097,1780927855000,-200.0,0.0003,11]
[424461094,1780927855000,-327590.53564537,0.0003,7]
[424461095,1780927855000,-43515.82456204,0.0003,40]
[424461099,1780927855000,-200.0,0.0003,11]
[424461171,1780927856000,-183.66132573,0.00030072,7]
[424461174,1780927856000,-300.0,0.000301,2]
[424461167,1780927856000,-489.84630771,0.0003003,2]